[Event "Nakhchivan Open 2022"]
[Site "Nakhchivan"]
[Date "2022.05.10"]
[Round "4.1"]
[White "Babayev, Talib"]
[Black "Lorparizangeneh, Shahin"]
[Result "1/2-1/2"]
[ECO "B90"]
[WhiteElo "2218"]
[BlackElo "2502"]
[Annotator "TA"]
[PlyCount "175"]
[EventDate "2022.05.08"]
[EventType "swiss"]
[EventCountry "AZE"]
[SourceTitle "playchess.com"]
[Source "ChessBase"]
[SourceQuality "1"]
[TimeControl "5400+30"]

{[%evp 9,175,22,33,-1,14,1,17,7,12,15,20,20,7,0,21,22,25,15,36,36,39,-16,-11,-30,-14,-16,13,0,0,0,24,37,61,16,5,-77,16,6,23,21,122,-27,-13,-16,-16,-6,102,104,102,104,107,117,346,335,310,337,364,340,310,136,131,131,131,131,131,131,138,9,9,15,52,0,0,0,0,0,0,0,0,0,0,0,9,16,18,0,0,0,0,0,0,0,0,0,0,0,0,0,0,0,0,0,0,0,0,0,0,0,0,0,0,0,0,0,0,0,0,0,0,0,0,0,0,0,0,0,0,0,0,0,0,0,0,0,0,0,0,0,0,0,0,0,0,0,0,0,0,0,0,0,0,0,0,0,0,0,0,0,0,0,0,0,0,0,0,0,0,0]} 1. e4 {[%emt 0:00:04]} c5 {[%emt 0:00:25]} 2. Nf3 {[%emt 0:00:08]} d6 {[%emt 0:00:09]} 3. d4 {[%emt 0:00:07]} cxd4 {[%emt 0:00:05]} 4. Nxd4 {[%emt 0:00:05]} Nf6 {[%emt 0:00:11]} 5. Nc3 {[%emt 0:00:08]} a6 {[%emt 0:00:11]} 6. h4 {[%emt 0:00:08] B90: Sicilian Najdorf: Unusual White 6th moves, 6 Be3 Ng4 and 6 Be3 e5.} h6 {[%emt 0:05:58]} 7. Be2 {[%emt 0:00:47]} e5 {[%emt 0:01:44]} 8. Nb3 {[%emt 0:00:10]} Be6 {[%emt 0:01:33]} 9. f4 {[%emt 0:00:13]} b5 {[%emt 0:07:21][%cal Bb7b5,Bb5b4][%mdl 32]} 10. f5 {[%emt 0:07:55] [#]} Bd7 $146 {[%emt 0:01:57]} ({Predecessor:} 10... Bc8 11. a4 b4 12. Nd5 Bb7 13. Nxf6+ Qxf6 14. Bf3 Nc6 15. Be3 g5 16. fxg6 Qxg6 {1-0 (74) Steinberg,N (2537)-Fedoseev,V (2704) Chess.com INT 2022}) 11. Be3 {[%emt 0:03:31]} b4 {[%emt 0:10:19]} 12. Nd5 {[%emt 0:01:13]} Nxd5 {[%emt 0:00:21]} (12... Nxe4 $2 13. Bb6 Qc8 14. Nc7+ Ke7 15. Nxa8 $18) 13. Qxd5 {[%emt 0:00:12]} Bc6 {[%emt 0:00:08]} 14. Qc4 {[%emt 0:07:01]} Be7 {[%emt 0:11:31]} 15. Qxb4 {[%emt 0:04:50]} ({White should try} 15. O-O-O $14) 15... a5 $11 {[%emt 0:07:24]} 16. Qc4 {[%emt 0:00:49]} Bxh4+ {[%emt 0:00:38]} 17. Kf1 {[%emt 0:00:07]} Bg5 {[%emt 0:01:47]} 18. Bxg5 {[%emt 0:01:44]} (18. Rh3 $5 {[%cal Ra1d1]}) 18... Qxg5 {[%emt 0:00:08]} 19. Rd1 {[%emt 0:00:29]} a4 {[%emt 0:14:14]} 20. Nd2 {[%emt 0:05:05]} Qf4+ {[%emt 0:02:01]} 21. Bf3 $1 {[%emt 0:01:09]} O-O {[%emt 0:00:54]} 22. g3 {[%emt 0:03:57]} (22. Kf2 $11 Qg5 23. Nf1) 22... Qe3 {[%emt 0:08:15]} ({Better is} 22... Qxg3 $17 23. Ke2 Ra5) 23. Kg2 {[%emt 0:02:29] next Nf1 is good for White.} Ra5 {[%emt 0:00:15]} 24. Nf1 {[%emt 0:02:07][%csl LRd6,LRe3]} Qb6 {[%emt 0:00:52] [#]} (24... Qc5 $11 {remains equal.} 25. Qxc5 Rxc5) 25. Rxd6 {[%emt 0:01:45]} ({White should play} 25. f6 $1 $16) 25... Rc5 $1 {[%emt 0:01:01]} 26. Qd3 {[%emt 0:00:11]} Qxb2 {[%emt 0:05:25]} 27. Ne3 $36 {[%emt 0:00:15][%mdl 2048] And now f6 would win. White has some pressure.} Nd7 {[%emt 0:09:26] [#] Against f6} 28. Rxc6 $1 $16 {[%emt 0:02:32][%mdl 512]} Rxc6 {[%emt 0:00:05]} 29. Qxd7 {[%emt 0:00:06]} Rc3 {[%emt 0:00:05] [#]} 30. Re1 {[%emt 0:03:19] Strongly threatening f6.} (30. Qd2 $6 Rfc8 31. Qd7 Qxa2 $11) 30... Rfc8 $2 {[%emt 0:00:41]} (30... Qxa2 $16 {was worth a try.} 31. f6 g6) 31. Re2 $18 {[%emt 0:03:50]} ({Stronger than} 31. Qxa4 Rxc2+ 32. Nxc2 Rxc2+ 33. Be2 Rxe2+ 34. Rxe2 Qxe2+ 35. Kh3 Kh7 $11) 31... R3c7 {[%emt 0:07:47]} 32. Qxa4 {[%emt 0:00:42]} Kh7 {[%emt 0:00:06]} 33. f6 {[%emt 0:03:13]} Qd4 {[%emt 0:01:54]} 34. Qxd4 {[%emt 0:09:47]} (34. Qb5 $18 {is more deadly.}) 34... exd4 $16 {[%emt 0:00:01]} 35. Nf5 {[%emt 0:00:08][%csl LRd4,LRg7]} Rxc2 {[%emt 0:00:25]} 36. Nxd4 {[%emt 0:00:06]} Rxe2+ {[%emt 0:00:20]} 37. Bxe2 {[%emt 0:03:14]} Ra8 {[%emt 0:00:07]} 38. e5 {[%emt 0:01:36]} (38. fxg7 $16 {aiming for Nf5.} Rxa2 39. Kf3) 38... gxf6 $1 $11 {[%emt 0:01:53]} 39. Bd3+ {[%emt 0:04:11]} Kg8 {[%emt 0:00:05] Hoping for ...Rd8.} 40. Nc2 {[%emt 0:00:46]} ({Don't blunder} 40. exf6 $2 Rd8 41. Kf3 Rxd4 $19) (40. Bc4 $14) 40... Rxa2 {[%emt 0:01:02] The position is equal.} 41. exf6 {[%emt 0:00:07]} Rb2 {[%emt 0:00:07]} 42. Kf3 {[%emt 0:02:39]} Rb6 {[%emt 0:00:09]} 43. Ne3 {[%emt 0:00:09]} Rxf6+ {[%emt 0:00:06]} 44. Nf5 {[%emt 0:00:09]} Rb6 {[%emt 0:00:52]} 45. Kg4 {[%emt 0:01:52]} Kf8 {[%emt 0:01:18]} 46. Kh5 {[%emt 0:00:58]} Rg6 {[%emt 0:01:02]} 47. g4 {[%emt 0:01:02]} Rg5+ {[%emt 0:00:21]} 48. Kh4 {[%emt 0:00:08]} Rg6 {[%emt 0:00:11]} 49. Bf1 {[%emt 0:02:16]} Rb6 {[%emt 0:00:56]} 50. Bh3 {[%emt 0:03:18]} Ra6 {[%emt 0:00:39]} 51. Kh5 {[%emt 0:02:19]} Ra3 {[%emt 0:00:09]} 52. Kh4 {[%emt 0:01:35]} Ra6 {[%emt 0:00:15]} 53. Bg2 {[%emt 0:00:08]} Ra2 {[%emt 0:01:15]} 54. Bd5 {[%emt 0:00:16]} Ra5 {[%emt 0:00:25]} 55. Bc4 {[%emt 0:00:56]} Ra4 {[%emt 0:00:24]} 56. Bb5 {[%emt 0:02:09]} Ra5 {[%emt 0:00:26]} 57. Nd4 {[%emt 0:00:16]} Ra2 {[%emt 0:00:56]} 58. Bc6 {[%emt 0:02:37]} Ra5 {[%emt 0:00:06]} 59. Nf5 {[%emt 0:00:41]} (59. Bg2 $5 {[%cal Rd4f5]}) 59... Ra6 {[%emt 0:00:11]} 60. Bf3 {[%emt 0:02:13]} Ra3 {[%emt 0:00:25]} 61. Kg3 {[%emt 0:00:36]} Ra6 {[%emt 0:00:15]} 62. Kf4 {[%emt 0:00:16]} Rb6 {[%emt 0:01:22]} 63. Ke5 {[%emt 0:00:33]} Re6+ {[%emt 0:00:08]} 64. Kd4 {[%emt 0:01:03]} Rf6 {[%emt 0:00:31]} 65. Ke5 {[%emt 0:01:43]} Re6+ {[%emt 0:00:05]} 66. Kf4 {[%emt 0:00:03]} Rb6 {[%emt 0:00:10]} 67. Be4 {[%emt 0:00:29]} Ra6 {[%emt 0:00:23]} 68. Ng3 {[%emt 0:01:42]} Rb6 {[%emt 0:00:43]} 69. Ke5 {[%emt 0:00:47]} Re6+ {[%emt 0:00:50]} 70. Kf5 {[%emt 0:00:06]} Rg6 {[%emt 0:00:13]} 71. Bf3 {[%emt 0:01:40]} Rg5+ {[%emt 0:00:29]} 72. Kf4 {[%emt 0:00:07]} Ra5 {[%emt 0:00:25]} 73. Be4 {[%emt 0:01:15]} Ra6 {[%emt 0:00:24]} ({But not} 73... Ra4 74. Nf5 $14) 74. Nh5 {[%emt 0:00:55]} Ke7 {[%emt 0:00:34]} 75. Ke5 {[%emt 0:01:13]} Ra5+ {[%emt 0:01:52]} 76. Bd5 {[%emt 0:00:09]} Ra6 {[%emt 0:00:29]} 77. Nf4 {[%emt 0:00:37]} Ra5 {[%emt 0:00:24]} 78. Ne2 {[%emt 0:01:11]} Ra6 {[%emt 0:00:30]} 79. Nd4 {[%emt 0:00:07]} Rg6 {[%emt 0:00:13]} 80. Bf3 {[%emt 0:00:53]} Kf8 {[%emt 0:00:26]} 81. Nc6 {[%emt 0:00:40]} Rg5+ {[%emt 0:00:26]} 82. Kf6 {[%emt 0:00:29] Black must now prevent Ne5.} Rg6+ {[%emt 0:00:18]} 83. Kf5 {[%emt 0:00:07]} Rg5+ {[%emt 0:00:04]} 84. Kf4 {[%emt 0:00:34]} Rb5 {[%emt 0:00:19]} 85. Ne5 {[%emt 0:00:16]} Kg7 {[%emt 0:00:42]} 86. Bc6 {[%emt 0:00:30]} Rc5 {[%emt 0:01:11] ...f6 is the strong threat.} 87. Be8 {[%emt 0:00:13]} Rc8 {[%emt 0:00:23]} 88. Bxf7 {[%emt 0:02:23] Blacks defense is rewarded with a draw.  Weighted Error Value: White=0.20 (precise) /Black=0.19 (very precise)} 1/2-1/2

[Event "Nakhchivan Open 2022"]
[Site "Nakhchivan"]
[Date "2022.05.10"]
[Round "4.3"]
[White "Jafarli, Babak"]
[Black "Haznedaroglu, Kivanc"]
[Result "1/2-1/2"]
[ECO "A01"]
[WhiteElo "2181"]
[BlackElo "2425"]
[Annotator "TA"]
[PlyCount "76"]
[EventDate "2022.05.08"]
[EventType "swiss"]
[EventCountry "AZE"]
[SourceTitle "playchess.com"]
[Source "ChessBase"]
[SourceQuality "1"]
[TimeControl "5400+30"]

{[%evp 10,76,-12,-14,0,0,0,-7,-4,-6,0,-23,0,0,0,1,26,35,45,45,45,54,54,10,7,7,7,13,11,8,8,13,13,16,16,12,13,7,13,13,12,0,0,0,0,0,0,0,37,37,54,54,55,55,56,56,55,56,57,57,175,56,56,56,56,56,75,85,67]} 1. b3 {[%emt 0:00:01]} d5 {[%emt 0:00:54]} 2. Bb2 Bf5 3. e3 {[%emt 0:00:30]} Nd7 {[%emt 0:03:03]} 4. f4 {[%emt 0:00:42]} e6 {[%emt 0:00:24]} 5. Nf3 {[%emt 0:00:04]} Ngf6 {[%emt 0:00:12]} 6. Be2 {[%emt 0:02:38]} h6 {[%emt 0:01:24] A03: Bird's Opening with 1...d5.} 7. O-O {[%emt 0:00:53]} Bd6 {[%emt 0:00:09]} 8. Ne5 {[%emt 0:00:36]} Qe7 {[%emt 0:02:18] The position is equal.} 9. c4 {[%emt 0:06:57]} c6 {[%emt 0:01:05]} 10. d3 {[%emt 0:01:26][%cal Bd2d3,Bd3d4][%mdl 32]} Bc5 {[%emt 0:13:17]} 11. d4 {[%emt 0:01:16] [#] And now Nxd7 would win.} Bd6 $146 {[%emt 0:01:28]} ({Predecessor:} 11... Bb4 12. c5 Ne4 13. a3 Ba5 14. b4 Bc7 15. Nxd7 Kxd7 16. Nd2 g5 17. Nxe4 Bxe4 {½-½ (41) Aigner,M-Nelson,D California 1994}) 12. Nd2 {[%emt 0:00:13]} g5 {[%emt 0:06:35]} 13. c5 {[%emt 0:07:30]} Bxe5 {[%emt 0:09:45]} 14. fxe5 {[%emt 0:00:34]} Ne4 {[%emt 0:00:11]} 15. Nxe4 {[%emt 0:00:05]} Bxe4 {[%emt 0:00:04]} 16. Bd3 {[%emt 0:00:16]} Bxd3 {[%emt 0:06:23]} 17. Qxd3 {[%emt 0:02:58]} O-O {[%emt 0:00:22]} 18. e4 {[%emt 0:00:26]} dxe4 {[%emt 0:03:11]} 19. Qxe4 {[%emt 0:00:09]} f5 {[%emt 0:00:22]} 20. exf6 {[%emt 0:01:47]} Nxf6 {[%emt 0:00:02]} 21. Qd3 {[%emt 0:00:25][%cal Od4d5] Strongly threatening d5!} Qh7 $1 {[%emt 0:01:54]} 22. Qh3 {[%emt 0:00:05]} Rae8 {[%emt 0:00:14]} 23. Rae1 {[%emt 0:00:05]} Nd5 {[%emt 0:00:21]} 24. Rxf8+ {[%emt 0:00:58]} Kxf8 {[%emt 0:01:10]} 25. Bc1 {[%emt 0:00:06][%cal Oc1g5] Black must now prevent Bxg5!} Qg6 {[%emt 0:01:59]} 26. Qg4 {[%emt 0:00:09]} Kg7 {[%emt 0:00:06]} 27. h4 {[%emt 0:00:08]} gxh4 {[%emt 0:00:09]} 28. Qxh4 {[%emt 0:00:05]} Kh7 {[%emt 0:01:48]} 29. Qh3 {[%emt 0:00:06]} Nf6 {[%emt 0:24:20]} 30. Rxe6 {[%emt 0:00:32]} Rxe6 {[%emt 0:00:02]} 31. Qxe6 $14 {[%emt 0:00:06][%mdl 4096] Endgame KQB-KQN} Nd5 {[%emt 0:00:05]} 32. Qd7+ {[%emt 0:00:29]} Qg7 {[%emt 0:00:01]} 33. Qf5+ {[%emt 0:00:39]} Qg6 {[%emt 0:00:02]} 34. Qf3 {[%emt 0:00:11]} Qf6 {[%emt 0:00:23] [#]} ({Better is} 34... Nf6 $14) 35. Qg4 {[%emt 0:05:55]} ({White must play} 35. Qxf6 $1 $18 {Qf7+ would kill now.} Nxf6 36. Kf2) 35... Qg6 {[%emt 0:00:17]} 36. Qh3 {[%emt 0:00:17]} h5 {[%emt 0:01:50]} 37. Qd7+ {[%emt 0:03:50]} Qg7 {[%emt 0:00:01]} 38. Qf5+ {[%emt 0:00:07]} Qg6 {[%emt 0:00:03] Weighted Error Value: White=0.07 (flawless) /Black=0.09 (flawless)} 1/2-1/2

[Event "Nakhchivan Open 2022"]
[Site "Nakhchivan"]
[Date "2022.05.10"]
[Round "4.4"]
[White "Mammadov, Zaur"]
[Black "Hasanov, Rashad"]
[Result "0-1"]
[ECO "C42"]
[WhiteElo "2410"]
[BlackElo "2142"]
[Annotator "TA"]
[PlyCount "98"]
[EventDate "2022.05.08"]
[EventType "swiss"]
[EventCountry "AZE"]
[SourceTitle "playchess.com"]
[Source "ChessBase"]
[SourceQuality "1"]
[TimeControl "5400+30"]

{[%evp 9,98,-10,-18,-4,-11,-7,0,0,0,0,0,0,0,-16,-13,-20,-16,-34,-36,-28,-10,0,0,0,0,0,45,37,42,48,42,57,50,49,48,47,47,41,58,49,46,38,46,33,45,35,48,36,29,9,8,8,9,0,22,0,82,-7,0,-539,-539,-525,-513,-664,-564,-687,-672,-870,-843,-782,-763,-750,-711,-1613,-1566,-29974,-29974,-29975,-29976,-29975,-29976,-29978,-29979,-29978,-29979,-29979,-29980,-29978,-29979,-29989,-29990]} 1. e4 {[%emt 0:00:07]} e5 {[%emt 0:00:57]} 2. Nf3 {[%emt 0:00:16]} Nf6 {[%emt 0:00:05]} 3. Nc3 {[%emt 0:00:06]} Bb4 {[%emt 0:00:24]} 4. Bd3 {[%emt 0:00:22]} O-O {[%emt 0:01:17]} 5. O-O {[%emt 0:00:16]} Re8 {[%emt 0:02:26]} 6. a3 {[%emt 0:05:38] [#] C42: Petroff Defence: 3 Nxe5 and unusual White 3rd moves.} Bxc3 $146 {[%emt 0:05:11]} ({Predecessor:} 6... Ba5 7. b4 Bb6 8. Bc4 Nxe4 9. Nxe4 d5 10. Bxd5 Qxd5 11. d3 Bg4 12. Be3 Bxe3 13. fxe3 {0-1 (40) Garcia Mina,A-Gutierrez Bustillo,D Zarauz 2004}) 7. dxc3 {[%emt 0:01:48]} ({Much worse is} 7. bxc3 d5 8. Re1 Nbd7 $15) 7... d5 {[%emt 0:00:47]} 8. Bg5 {[%emt 0:05:00] The position is equal.} dxe4 {[%emt 0:01:41]} 9. Bxf6 {[%emt 0:00:15][%mdl 64] [#] Remove Defender} Qxf6 {[%emt 0:00:17]} 10. Bxe4 {[%emt 0:00:02]} Nd7 {[%emt 0:07:48]} 11. b4 {[%emt 0:03:45] Inhibits Nc5.} Qf4 {[%emt 0:05:21]} 12. Re1 {[%emt 0:14:54]} Nf6 {[%emt 0:04:45]} 13. g3 {[%emt 0:03:21]} Qh6 {[%emt 0:06:45]} 14. Qd3 {[%emt 0:01:50]} Nxe4 {[%emt 0:05:38]} 15. Qxe4 {[%emt 0:02:40]} f6 {[%emt 0:01:07]} 16. Qc4+ {[%emt 0:12:24]} Be6 {[%emt 0:00:07]} 17. Qxc7 {[%emt 0:00:03]} Rac8 {[%emt 0:09:48]} 18. Qxb7 {[%emt 0:00:21][%cal Of3d4]} Rxc3 {[%emt 0:00:27]} 19. Nh4 {[%emt 0:00:22][%cal Bf3h4,Bh4g2,Bg2e3][%mdl 32]} g5 {[%emt 0:12:10]} 20. Ng2 {[%emt 0:01:16]} Qg7 $1 {[%emt 0:02:28]} 21. Qb5 {[%emt 0:06:00]} Qd7 {[%emt 0:05:09]} 22. Qxd7 {[%emt 0:06:42]} Bxd7 {[%emt 0:00:08]} 23. Ne3 {[%emt 0:00:24]} Be6 {[%emt 0:01:58] Prevents Nd5.} 24. Red1 {[%emt 0:01:58]} Kf7 {[%emt 0:06:12]} 25. g4 {[%emt 0:02:17] Prevents f5.} h5 $1 {[%emt 0:02:26]} 26. h3 {[%emt 0:00:09]} hxg4 {[%emt 0:01:54]} 27. hxg4 {[%emt 0:00:08]} Rh8 {[%emt 0:04:57]} 28. Kg2 {[%emt 0:01:04]} Bc8 {[%emt 0:02:41]} 29. Kg3 {[%emt 0:03:29]} f5 {[%emt 0:03:12]} 30. gxf5 {[%emt 0:06:21]} Bxf5 {[%emt 0:00:04]} 31. Kf3 {[%emt 0:01:07]} Rh3+ {[%emt 0:04:35]} 32. Ke2 {[%emt 0:00:07]} Be4 {[%emt 0:00:16]} (32... Bxc2 $11 {remains equal.} 33. Rd7+ Ke6 34. Rxa7 Be4) 33. Rd7+ {[%emt 0:03:23]} ({Better is} 33. Kd2 $16 Rc6 34. Rg1) 33... Ke6 $11 {[%emt 0:00:10]} 34. Rxa7 {[%emt 0:00:35][%mdl 8192] [#] Black converts the advantage convincingly.} (34. Rdd1 $1 $11 {and White stays safe.}) 34... Rcxe3+ $1 $19 {[%emt 0:00:22][%mdl 512]} 35. fxe3 $11 {[%emt 0:01:17][%mdl 4096] Endgame KRR-KRB} Rh2+ {[%emt 0:00:04]} 36. Kd1 {[%emt 0:00:05]} Rh1+ {[%emt 0:00:04][%mdl 64] Skewer} 37. Kd2 {[%emt 0:00:05]} Rxa1 $19 {[%emt 0:00:05] KRB-KR} 38. c4 {[%emt 0:00:04]} g4 {[%emt 0:00:38] ( -> ...g3)} 39. Rg7 {[%emt 0:00:09]} Bf3 {[%emt 0:00:34] ...Ra2+ is the strong threat.} 40. b5 {[%emt 0:00:40]} Rxa3 {[%emt 0:00:29]} 41. b6 {[%emt 0:00:01]} Ra8 {[%emt 0:01:32]} 42. c5 {[%emt 0:06:16]} Kf6 {[%emt 0:00:46] Black mates.} 43. Rh7 {[%emt 0:01:38]} Rd8+ {[%emt 0:01:26]} 44. Kc3 {[%emt 0:00:45]} Kg6 {[%emt 0:00:13]} 45. Rh2 {[%emt 0:04:09]} g3 {[%emt 0:00:58][%cal Bg4g3,Bg3g2][%mdl 32]} 46. Rh3 {[%emt 0:00:06]} g2 {[%emt 0:00:11]} 47. Rg3+ {[%emt 0:00:03]} Kh5 {[%emt 0:00:25]} 48. Kb4 {[%emt 0:00:41]} Kh4 {[%emt 0:00:23]} 49. Rg7 {[%emt 0:00:05]} Bg4 {[%emt 0:00:17] Weighted Error Value: White=0.64/Black=0.07 (flawless)} 0-1

[Event "Nakhchivan Open 2022"]
[Site "Nakhchivan"]
[Date "2022.05.10"]
[Round "4.5"]
[White "Ahmad, Khagan"]
[Black "Shahaliyev, Ismayil"]
[Result "0-1"]
[ECO "C06"]
[WhiteElo "2178"]
[BlackElo "2386"]
[Annotator "TA"]
[PlyCount "106"]
[EventDate "2022.05.08"]
[EventType "swiss"]
[EventCountry "AZE"]
[SourceTitle "playchess.com"]
[Source "ChessBase"]
[SourceQuality "1"]
[TimeControl "5400+30"]

{[%evp 30,106,17,0,0,0,0,0,17,0,0,0,0,0,0,-6,0,0,0,-11,-11,-11,-11,-29,-29,-29,0,-21,-21,-68,-71,-118,-105,-178,-172,-166,-178,-252,-250,-254,-257,-247,-239,-271,-263,-270,-270,-473,-479,-502,-479,-549,-555,-532,-528,-976,-955,-914,-912,-918,-927,-853,-843,-829,-670,-1268,-1165,-1216,-1170,-1128,-891,-29964,-29959,-29976,-29978,-29978,-29979,-29979,-29976]} 1. e4 {[%emt 0:00:02]} e6 {[%emt 0:01:52]} 2. d4 {[%emt 0:00:08]} d5 {[%emt 0:00:03]} 3. Nd2 {[%emt 0:00:05]} Nf6 {[%emt 0:00:07]} 4. e5 {[%emt 0:00:05]} Nfd7 {[%emt 0:01:13]} 5. Bd3 {[%emt 0:00:10]} c5 {[%emt 0:00:04]} 6. c3 {[%emt 0:00:05]} Nc6 {[%emt 0:00:03]} 7. Ne2 {[%emt 0:00:05]} cxd4 {[%emt 0:00:17]} 8. cxd4 {[%emt 0:00:20]} f6 {[%emt 0:00:02]} 9. exf6 {[%emt 0:00:30]} Nxf6 {[%emt 0:00:02]} 10. Nf3 {[%emt 0:00:27]} Bd6 {[%emt 0:00:06]} 11. O-O {[%emt 0:00:38]} O-O {[%emt 0:00:04]} 12. Bf4 {[%emt 0:00:50]} Bxf4 {[%emt 0:00:13]} 13. Nxf4 {[%emt 0:00:06]} Ne4 {[%emt 0:00:07]} 14. Qc1 {[%emt 0:00:28]} Ng5 {[%emt 0:00:14]} 15. Nxg5 {[%emt 0:01:01]} Qxg5 {[%emt 0:00:13] [#]} 16. Bxh7+ $1 {[%emt 0:00:07]} Kxh7 {[%emt 0:00:07] C06: French Tarrasch: 3...Nf6 4 e5 Nfd7 5 Bd3 main lines.} 17. Nxe6 {[%emt 0:00:07]} Qf6 {[%emt 0:00:12]} 18. Nxf8+ {[%emt 0:00:06]} Qxf8 {[%emt 0:00:03] The position is equal.} 19. Qe3 {[%emt 0:02:03] [#]} Qf5 $146 {[%emt 0:07:50]} ({Predecessor:} 19... Qf6 20. Rfe1 Bd7 21. Rac1 Re8 22. Qb3 Nxd4 23. Qxd5 Rxe1+ 24. Rxe1 Bc6 25. Qe5 Nf3+ 26. gxf3 Qxf3 27. Kf1 Qd3+ 28. Kg1 Qf3 29. Kf1 Qd3+ 30. Kg1 Qf3 {½-½ (30) Bethke,R (2332)-Pon,M (2185) Chess.com INT 2020}) 20. a3 {[%emt 0:11:07]} Bd7 {[%emt 0:01:15]} 21. Rfe1 {[%emt 0:00:24]} Rf8 {[%emt 0:02:43][%cal Ba8f8,Bf8f4,Bf4h4][%mdl 32]} 22. b4 {[%emt 0:11:31]} a6 {[%emt 0:05:40]} 23. Rad1 {[%emt 0:05:00]} Qf4 {[%emt 0:11:30]} 24. Qxf4 {[%emt 0:04:25]} Rxf4 {[%emt 0:00:11]} 25. Re2 {[%emt 0:00:05]} Kg6 {[%emt 0:07:20][%mdl 1024] Black has compensation.} ({Don't take} 25... Rxd4 26. Rxd4 Nxd4 27. Rd2 $14) 26. f3 {[%emt 0:02:35]} Kf6 {[%emt 0:01:26]} ({Don't play} 26... Rxd4 27. Rxd4 Nxd4 28. Rd2 $14) 27. Red2 {[%emt 0:00:40]} Na7 {[%emt 0:11:03]} 28. Kf2 {[%emt 0:01:00]} Rh4 {[%emt 0:02:29]} 29. Rc1 {[%emt 0:13:02]} (29. Kg1 $11) 29... Nb5 $15 {[%emt 0:03:51]} 30. a4 {[%emt 0:03:24] White is on the road to losing.} (30. Kg1 $142) 30... Nxd4 $17 {[%emt 0:01:20]} 31. Rcd1 {[%emt 0:00:12]} (31. Rh1 $17 {was necessary.}) 31... Ne6 $19 {[%emt 0:01:44]} 32. Rxd5 {[%emt 0:02:13]} Bxa4 {[%emt 0:00:49]} 33. Rb1 {[%emt 0:00:09]} (33. Re1 $142) 33... Rxh2 {[%emt 0:00:19]} 34. Rd6 {[%emt 0:02:16]} Ke7 {[%emt 0:00:47]} 35. Rd2 {[%emt 0:00:21]} Rh4 {[%emt 0:02:55]} 36. Ke3 {[%emt 0:03:22]} Bc6 {[%emt 0:01:44]} 37. Kd3 {[%emt 0:01:32]} Nf4+ {[%emt 0:01:41]} 38. Kc4 $2 {[%emt 0:06:08]} (38. Kc2 Nd5 39. b5 axb5 40. Rc1) 38... Nxg2+ {[%emt 0:01:47]} 39. Kc5 {[%emt 0:00:14]} Bxf3 {[%emt 0:01:05]} 40. Rb3 {[%emt 0:00:52]} Bc6 {[%emt 0:05:30]} 41. Rg3 {[%emt 0:01:45]} Kf7 {[%emt 0:00:47]} 42. Rgxg2 {[%emt 0:03:50]} Bxg2 {[%emt 0:00:41][%mdl 4096] Endgame KRB-KR} 43. Rf2+ {[%emt 0:00:05]} Kg8 {[%emt 0:00:23]} 44. Rxg2 {[%emt 0:00:02] KR-KR} Rh5+ {[%emt 0:00:15]} 45. Kd4 {[%emt 0:00:09]} Rb5 {[%emt 0:00:14]} 46. Kc4 {[%emt 0:00:27]} g5 {[%emt 0:00:09][%cal Bg7g5,Bg5g4,Bg4g3,Bg3g2][%mdl 32]} 47. Rd2 {[%emt 0:00:13]} Kf7 {[%emt 0:00:18]} 48. Rd6 {[%emt 0:00:08]} g4 {[%emt 0:03:40] [#] ...g3 is the strong threat.} 49. Rd4 {[%emt 0:00:17]} Rg5 {[%emt 0:00:31] ( -> ...Kg6)} 50. Rd7+ {[%emt 0:00:43]} Ke6 {[%emt 0:00:53] Black mates.} 51. Rxb7 {[%emt 0:00:11]} g3 {[%emt 0:00:11]} 52. Ra7 {[%emt 0:00:15]} g2 {[%emt 0:00:11]} 53. Rxa6+ {[%emt 0:00:02]} Kd7 {[%emt 0:00:30] Weighted Error Value: White=0.35/Black=0.02 (flawless)} 0-1